Cogmind - Beta 11.2 @@@ ROGUE MODE // 2022.12.25 @ 15:05:26 // Winter2022/Polymind Player: ChromeKnight Result: Destroyed by H-88 Terminator with KE Penetrator Performance ------------- Evolutions (9) 4500 Regions Visited (23) 4600 Robots Destroyed (72) 360 Value Destroyed (3194) 3194 Prototype IDs (22) 440 Alien Tech Used (0) 0 Bonus (11119) 11119 TOTAL SCORE: 24073 Bonus ------- Polymind Skill 8680 High Alert Combat Kills 259 Follower Combat Kills 1380 Met Zhirov 300 Hacked Protovariant 500 Cogmind --------- Core Integrity 0/1600 Matter 0/0 Energy 50/50 System Corruption 9% Temperature Cool (0) Movement Rolling (80) Location -1/Access Parts ------- > --- POWER (1) -------- Light Ion Engine > --- PROPULSION (2) --- Wheel > --- UTILITY (3) ------ Structural Scanner Terrain Scanner Terrain Scan Processor > --- WEAPON (1) ------- (None) > --- INVENTORY (0) ---- (None) Peak State ------------ > --- POWER ------------ Heavy Deuterium Engine > --- PROPULSION ------- Combat Antigrav System > --- UTILITY ---------- Advanced Launcher Guidance Computer Improved Target Analyzer Experimental Core Analyzer Improved Armor Integrity Analyzer EX Chip 1 EX Chip 1 EX Chip 1 EX Chip 1 EX Chip 1 EX Chip 1 EX Chip 1 EX Chip 1 EX Chip 1 EX Chip 1 EX Chip 2 EX Chip 2 EX Chip 2 EX Chip 2 EX Chip 2 EX Chip 2 EX Chip 2 EX Chip 2 > --- WEAPON ----------- AWS/EX-DEC > --- INVENTORY -------- Deploy-a-Sentry [Rating: 99] Favorites ----------- Power Compact Particle Reactor Engine Heavy Deuterium Engine Power Core Fission Core Reactor Compact Particle Reactor Propulsion Enhanced Biometal Leg Treads Medium Treads Leg Enhanced Biometal Leg Wheel Wheel Hover Unit Cooled Gravmag System Flight Unit Xenon Bombardment Thruster Utility EX Chip 1 Device Advanced Cooling System Storage Advanced Energy Well Processor Advanced Targeting Computer Hackware EX Chip 1 Protection Advanced Powered Armor Weapon Nova Cannon Energy Gun 01-MTF's Shockpuncher Energy Cannon Nova Cannon Ballistic Gun Gauss Rifle Ballistic Cannon Bore Cannon Launcher Heavy Rocket Launcher Special Weapon Welding Torch Slashing Weapon Dual-blade Saw Build | -11 -10 -10 -10 -9 -8 -8 -7 -6 -5 -5 -5 -5 -5 -5 -4 -4 -4 -4 -3 -3 -2 -2 -1 ------- Run | Scr Mat Min Exi Min Mat Sto Fac Fac Fac Was Fac Upp Upp Zhi Pro Fac Was Fac Res Arm Res Tes Acc Slots Evolved . | . . . . . . . . . . . . . . . . . . . . . . . . Power . | . . . . . . . . . . . . . . . . . . . . . . . . Propulsion . | . . . . . . . . . . . . . . . . . . . . . . . . Utility . | . . . . . . . . . . . . . . . . . . . . . . . . Weapon . | . . . . . . . . . . . . . . . . . . . . . . . . Parts Attached . | . . . . . . . . . . . . . . . . . . . . . . . . Power . | . . . . . . . . . . . . . . . . . . . . . . . . Engine . | . . . . . . . . . . . . . . . . . . . . . . . . Core . | . . . . . . . . . . . . . . . . . . . . . . . . Reactor . | . . . . . . . . . . . . . . . . . . . . . . . . Propulsion . | . . . . . . . . . . . . . . . . . . . . . . . . Treads . | . . . . . . . . . . . . . . . . . . . . . . . . Leg . | . . . . . . . . . . . . . . . . . . . . . . . . Wheel . | . . . . . . . . . . . . . . . . . . . . . . . . Hover . | . . . . . . . . . . . . . . . . . . . . . . . . Flight . | . . . . . . . . . . . . . . . . . . . . . . . . Utility . | . . . . . . . . . . . . . . . . . . . . . . . . Device . | . . . . . . . . . . . . . . . . . . . . . . . . Storage . | . . . . . . . . . . . . . . . . . . . . . . . . Processor . | . . . . . . . . . . . . . . . . . . . . . . . . Hackware . | . . . . . . . . . . . . . . . . . . . . . . . . Protection . | . . . . . . . . . . . . . . . . . . . . . . . . Artifact . | . . . . . . . . . . . . . . . . . . . . . . . . Weapon . | . . . . . . . . . . . . . . . . . . . . . . . . Energy Gun . | . . . . . . . . . . . . . . . . . . . . . . . . Energy Cannon . | . . . . . . . . . . . . . . . . . . . . . . . . Ballistic Gun . | . . . . . . . . . . . . . . . . . . . . . . . . Ballistic Cannon . | . . . . . . . . . . . . . . . . . . . . . . . . Launcher . | . . . . . . . . . . . . . . . . . . . . . . . . Special Weapon . | . . . . . . . . . . . . . . . . . . . . . . . . Impact Weapon . | . . . . . . . . . . . . . . . . . . . . . . . . Slashing Weapon . | . . . . . . . . . . . . . . . . . . . . . . . . Piercing Weapon . | . . . . . . . . . . . . . . . . . . . . . . . . Special Melee Weapon . | . . . . . . . . . . . . . . . . . . . . . . . . Unidentified Prototypes . | . . . . . . . . . . . . . . . . . . . . . . . . Parts Lost 61 | . . . . . 2 1 2 2 1 2 . . 3 . . 1 . 6 . 18 4 7 12 Power 8 | . . . . . . . 1 . . . . . . . . . . . . 2 1 2 2 Propulsion 19 | . . . . . . . . . . 1 . . 1 . . . . 1 . 5 2 3 6 Utility 22 | . . . . . 1 1 1 1 1 1 . . 2 . . 1 . 3 . 8 . 1 1 Weapon 12 | . . . . . 1 . . 1 . . . . . . . . . 2 . 3 1 1 3 Highest Loss Streak 9 | . . . . . 1 1 1 2 1 2 . . 2 . . 1 . 6 . 9 2 7 7 To Critical Strikes 1 | . . . . . . . . . . . . . . . . . . 1 . . . . . Average Slot Usage (%) 79 | . 25 100 98 96 92 96 84 70 44 37 . 44 82 94 100 99 90 80 100 81 68 54 67 Engine 2 | . 3 14 8 3 3 . . . . . . . . . . . . . . . 9 13 10 Core 2 | . . . . . . . . . . . . 5 14 1 . . . . . 2 . . 2 Reactor 4 | . . . . . . 6 3 . . . . . . 8 10 10 10 10 16 8 4 1 . Treads 1 | . . . . . . . . . . . . . . . . . . . . 12 . . . Leg 7 | . . . . . . . . . . . . 10 23 19 20 20 20 17 . . . . . Wheel 3 | . 7 28 14 . . . . . . . . . . . . . . . . . 18 20 20 Hover 4 | . . . 1 3 3 12 16 16 16 14 . . . . . . . 2 33 10 . . 2 Flight 1 | . . . . . . . . . . . . . . . . . . . . . 15 5 9 Device 14 | . 7 28 14 . . 24 25 22 16 14 . 5 7 25 30 29 20 18 16 16 . . 3 Storage 2 | . . . . . . 6 8 8 8 7 . . . . . . . . . . 9 11 10 Processor 9 | . 3 14 14 15 15 3 . . . . . 10 21 10 10 10 10 10 33 8 2 . 3 Hackware 9 | . . . 34 69 65 16 . . . . . . . . . . . . . . . . . Protection 6 | . . . . . . 18 22 15 2 . . . . 8 10 10 10 4 . 7 . . . Energy Gun 2 | . . . 1 3 2 6 8 7 . . . . . . . . . . . 6 . . . Energy Cannon 4 | . . . . . . . . . . . . . . 17 20 20 20 17 . . . . . Ballistic Gun 2 | . . . . . . . . . . . . 12 . . . . . . . 6 8 2 . Ballistic Cannon 1 | . . . . . . . . . . . . . 14 1 . . . . . . . . . Naked Turns 629 | . 37 . . . . 2 . . . 8 73 374 . 3 . . . 11 . 40 27 15 39 Heaviest Build 60 | . 6 6 21 21 21 29 28 18 7 5 . 20 20 60 60 60 55 55 13 47 17 20 20 Greatest Support 60 | 3 20 20 20 16 16 22 22 22 22 22 3 40 40 60 60 60 60 60 22 56 20 24 24 Greatest Overweight (x) 5 | . . . 1 1 1 1 1 . . . . . . . . . . . . 1 1 5 2 Average Overweight (x) . | . . . . 1 . . . . . . . . . . . . . . . . . . . Largest Inventory Capacity 9 | . . . 1 1 1 1 1 1 1 1 . 1 1 1 1 1 1 1 . 1 1 9 9 Average Capacity . | . . . . 1 1 . 1 1 1 . . . 1 . 1 1 1 . . . . . 1 Most Carried 4 | . . . 1 1 1 1 1 1 1 1 . 1 1 1 1 1 1 1 . . . 4 4 Average Carried . | . . . . 1 1 . 1 1 1 . . . . . 1 1 1 . . . . . . Final Capacity 9 | . . . 1 1 1 1 1 1 1 . . 1 1 1 1 1 1 . . . . 9 . Final Carried 4 | . . . 1 1 1 1 1 1 1 . . 1 1 1 1 1 1 . . . . 4 . Class Distribution -------------------- 20% | Svarog 19% | Programmer 14% | Hunter 13% | Tinkerer 9% | Cogmind 4% | Sentry 4% | Worker 3% | Builder 3% | Swarmer 3% | Watcher Dominant Class ---------------- Cogmind | -10/Materials Builder | -10/Mines Builder | -10/Exiles Tinkerer | -9/Mines Tinkerer | -8/Materials Programmer | -8/Storage Programmer | -7/Factory Programmer | -6/Factory Programmer | -5/Factory Programmer | -5/Waste Cogmind | -5/Factory Cogmind | -5/Upper Caves Hunter | -5/Upper Caves Svarog | -5/Zhirov Svarog | -4/Proximity Caves Svarog | -4/Factory Svarog | -4/Waste Svarog | -4/Factory Watcher | -3/Research Sentry | -3/Armory Swarmer | -2/Research Worker | -2/Testing Worker | -1/Access Resources | -11 -10 -10 -10 -9 -8 -8 -7 -6 -5 -5 -5 -5 -5 -5 -4 -4 -4 -4 -3 -3 -2 -2 -1 ----------- Run | Scr Mat Min Exi Min Mat Sto Fac Fac Fac Was Fac Upp Upp Zhi Pro Fac Was Fac Res Arm Res Tes Acc Matter Collected 335 | . . . . . . . . . . . . 22 217 7 22 . . . . 25 42 . . Remotely . | . . . . . . . . . . . . . . . . . . . . . . . . Salvage Created 3478 | . . . . 97 615 280 919 64 . . . 22 142 582 179 . . 310 . 33 42 46 147 Parts 167 | . . . . 5 37 12 28 13 . . . 5 10 7 6 2 . 13 . 10 6 4 9 Haulers Intercepted 2 | . . . . . . 2 . . . . . . . . . . . . . . . . . Recyclers Shooed 3 | . . . . . . . . . . . . . . . . . . 2 . . . . 1 Parts Field Recycled . | . . . . . . . . . . . . . . . . . . . . . . . . Retrieved Matter . | . . . . . . . . . . . . . . . . . . . . . . . . Parts Self-Destructed 21 | . . . . . . . . . . . . 6 12 3 . . . . . . . . . Prevented . | . . . . . . . . . . . . . . . . . . . . . . . . Kills | -11 -10 -10 -10 -9 -8 -8 -7 -6 -5 -5 -5 -5 -5 -5 -4 -4 -4 -4 -3 -3 -2 -2 -1 ------- Run | Scr Mat Min Exi Min Mat Sto Fac Fac Fac Was Fac Upp Upp Zhi Pro Fac Was Fac Res Arm Res Tes Acc Combat Hostiles Destroyed 59 | . . . . 2 14 1 14 4 . . . 2 5 . . 1 . 6 . 3 3 2 2 Melee 2 | . . . . . . . . . . . . . . . . . . . . . . . 2 Guns 32 | . . . . 2 8 1 8 3 . . . 2 . . . . . . . 3 3 2 . Cannons 12 | . . . . . . . . . . . . . 5 . . 1 . 6 . . . . . AOE 2 | . . . . . 2 . . . . . . . . . . . . . . . . . . Classes Destroyed 20 | . . . . 2 7 1 3 1 . . . 2 1 . 1 . . 1 . 1 . . . Worker 3 | . . . . . 2 . . . . . . . . . . . . . . . . . 1 Builder 2 | . . . . . 1 . 1 . . . . . . . . . . . . . . . . Hauler 2 | . . . . . . 2 . . . . . . . . . . . . . . . . . Recycler 2 | . . . . 1 . 1 . . . . . . . . . . . . . . . . . Minesweeper 1 | . . . . . . . . . . . . 1 . . . . . . . . . . . Operator 1 | . . . . . 1 . . . . . . . . . . . . . . . . . . Watcher 4 | . . . . . 3 . . . . . . . . . . . . . . 1 . . . Swarmer 10 | . . . . 2 3 . . . . . . . . . . . . . . . 3 2 . Cutter 5 | . . . . . . . . 3 . . . . . . . . . . . . . . 2 Grunt 18 | . . . . . 9 . 4 . . . . . 1 . . . . 4 . . . . . Brawler 2 | . . . . . . . 1 . . . . . 1 . . . . . . . . . . Duelist 2 | . . . . . . . 2 . . . . . . . . . . . . . . . . Sentry 5 | . . . . . 1 1 1 1 . . . . . . . 1 . . . . . . . Demolisher 1 | . . . . . . . . . . . . . . . . . . 1 . . . . . Specialist 2 | . . . . . . . . . . . . . . . . . . . . 2 . . . Hunter 6 | . . . . . 1 . 4 . . . . . . . . . . 1 . . . . . Programmer 5 | . . . . . . . . . . . . 2 2 . . . . . . 1 . . . Samaritan 4 | . . . . . . . . . . . . . . . 4 . . . . . . . . Assembled 2 | . . . . . . . 2 . . . . . . . . . . . . . . . . Mutant 1 | . . . . . . . . . . . . . 1 . . . . . . . . . . Best Kill Streak 10 | . . . . 2 10 2 3 3 . . . 1 2 . . 1 . 4 . 1 2 2 3 Combat Bots Only 8 | . . . . 1 8 1 4 3 . . . 1 2 . . 1 . 4 . 1 2 2 2 Max Kills in Single Turn 4 | . . . . 1 4 1 1 1 . . . 1 1 . 1 1 . 1 . 1 1 1 1 Gunslinging . | . . . . . . . . . . . . . . . . . . . . . . . . Exploded 2 | . . . . . 2 . . . . . . . . . . . . . . . . . . Melee 1 | . . . . . . . . . . . . . . . . . . . . . . . 1 Uniques/NPCs Destroyed . | . . . . . . . . . . . . . . . . . . . . . . . . Combat | -11 -10 -10 -10 -9 -8 -8 -7 -6 -5 -5 -5 -5 -5 -5 -4 -4 -4 -4 -3 -3 -2 -2 -1 -------- Run | Scr Mat Min Exi Min Mat Sto Fac Fac Fac Was Fac Upp Upp Zhi Pro Fac Was Fac Res Arm Res Tes Acc Damage Taken 13717 | . . . . 60 387 201 652 355 84 108 . 416 510 . . 705 . 1769 . 4024 875 1238 2333 Core 5569 | . . . . 18 107 39 139 71 . 54 . 111 85 . . 106 . 740 . 1178 532 789 1600 Absorbed by Shields . | . . . . . . . . . . . . . . . . . . . . . . . . Redirected to Shielding 195 | . . . . . . 54 67 19 55 . . . . . . . . . . . . . . Regen/Repaired (Parts) 102 | . . . . . . . . . . . . . . . . . 63 39 . . . . . Core Remaining (%) 61 | 100 . . . 92 . 73 80 91 . . . . . . 75 . . 26 . 9 . 8 . Volleys Fired 235 | . . . . . . 7 45 14 . . . 12 31 8 4 5 . 24 . 43 28 10 4 Largest 3 | . . . . . . 1 1 1 . . . 3 1 2 2 2 . 2 . 2 1 1 1 Hottest 226 | . . . . . . 50 50 50 . . . 79 57 226 226 226 . 226 . 129 30 30 30 Shots Fired 368 | . . . . 6 38 7 45 14 . . . 36 31 17 9 8 . 48 . 67 28 10 4 Gun 254 | . . . . 6 38 7 45 14 . . . 36 . . . . . . . 67 28 10 3 Cannon 113 | . . . . . . . . . . . . . 31 17 9 8 . 48 . . . . . Launcher 1 | . . . . . . . . . . . . . . . . . . . . . . . 1 Special . | . . . . . . . . . . . . . . . . . . . . . . . . Kinetic 151 | . . . . . . . . . . . . 36 31 1 . . . . . 42 28 10 3 Thermal 106 | . . . . . . . . . . . . . . 16 9 8 . 48 . 25 . . . Explosive 1 | . . . . . . . . . . . . . . . . . . . . . . . 1 Electromagnetic 110 | . . . . 6 38 7 45 14 . . . . . . . . . . . . . . . Robot Hit Streak 21 | . . . . 2 18 8 14 3 . . . 11 3 16 21 7 . 6 . 9 2 4 4 Robot Miss Streak 6 | . . . . 6 3 1 3 4 . . . 2 3 . 1 1 . 3 . 2 2 1 3 Penetration Max 1 | . . . . . . . . . . . . . . . . . . . . 1 . . . Secondary Targets . | . . . . . . . . . . . . . . . . . . . . . . . . Autonomous 44 | . . . . 6 38 . . . . . . . . . . . . . . . . . . Shots Hit Robots 266 | . . . . 3 37 7 39 11 . . . 25 15 13 6 7 . 28 . 49 15 8 3 Core Hits 134 | . . . . 3 26 3 23 6 1 . . 7 7 7 4 2 . 12 . 15 9 4 5 Critical Kills 5 | . . . . . . . . . . . . . 4 . . . . . . 1 . . . Critical Parts Destroyed 4 | . . . . . . . . . . . . . 4 . . . . . . . . . . Critical Strikes 21 | . . . . . 7 1 3 1 . . . . 8 . . . . . . 1 . . . Destroy 9 | . . . . . . . . . . . . . 8 . . . . . . 1 . . . Corrupt 12 | . . . . . 7 1 3 1 . . . . . . . . . . . . . . . Melee Attacks 2 | . . . . . . . . . . . . . . . . . . . . . . . 2 Impact . | . . . . . . . . . . . . . . . . . . . . . . . . Slashing 2 | . . . . . . . . . . . . . . . . . . . . . . . 2 Piercing . | . . . . . . . . . . . . . . . . . . . . . . . . Sneak Attacks . | . . . . . . . . . . . . . . . . . . . . . . . . Combat Hostiles . | . . . . . . . . . . . . . . . . . . . . . . . . Follow-up Attacks . | . . . . . . . . . . . . . . . . . . . . . . . . Damage Inflicted 9426 | . . . . 94 1424 294 1592 382 1 30 . 550 411 636 295 339 . 1196 . 1429 366 165 222 Guns 5812 | . . . . 94 1159 264 1401 361 . . . 550 . . . . . . . 1429 365 165 24 Cannons 2877 | . . . . . . . . . . . . . 411 636 295 339 . 1196 . . . . . Explosions 523 | . . . . . 265 30 191 . . . . . . . . . . . . . . . 37 Melee 78 | . . . . . . . . . . . . . . . . . . . . . . . 78 Ramming 136 | . . . . . . . . 21 1 30 . . . . . . . . . . 1 . 83 Kinetic 2395 | . . . . . . . . . . . . 550 411 . . . . . . 880 365 165 24 Thermal 3215 | . . . . . . 30 170 . . . . . . 636 295 339 . 1196 . 549 . . . Explosive 302 | . . . . . 265 . . . . . . . . . . . . . . . . . 37 Electromagnetic 3300 | . . . . 94 1159 264 1422 361 . . . . . . . . . . . . . . . Impact . | . . . . . . . . . . . . . . . . . . . . . . . . Slashing 78 | . . . . . . . . . . . . . . . . . . . . . . . 78 Piercing . | . . . . . . . . . . . . . . . . . . . . . . . . Highest Corruption 23 | . . . . . . . 1 1 . . . 1 4 4 4 . . . . 23 5 5 9 Average Corruption 5 | . . . . . . . 1 1 . . . 1 2 4 4 . . . . 18 5 5 7 Corruption Purged . | . . . . . . . . . . . . . . . . . . . . . . . . Corruption Blocked 9 | . . . . . . . . . . . . . . . . . . . . . . 9 . Effects 44 | . . . . . . . 1 . . . . 1 5 6 8 . . . . 18 2 1 2 Message Errors 9 | . . . . . . . 1 . . . . 1 3 . 1 . . . . 2 . . 1 Matter Fused 11 | . . . . . . . . . . . . . 1 2 2 . . . . 4 2 . . Heat Flow Errors 2 | . . . . . . . . . . . . . . . 1 . . . . . . 1 . Energy Discharges 6 | . . . . . . . . . . . . . 1 . 1 . . . . 4 . . . Data Loss (minor) 4 | . . . . . . . . . . . . . . 2 1 . . . . . . . 1 Data Loss (major) 1 | . . . . . . . . . . . . . . . 1 . . . . . . . . Misfires 2 | . . . . . . . . . . . . . . 1 1 . . . . . . . . Alerts 1 | . . . . . . . . . . . . . . 1 . . . . . . . . . Misdirections 7 | . . . . . . . . . . . . . . . . . . . . 7 . . . Weapon Failures 1 | . . . . . . . . . . . . . . . . . . . . 1 . . . Overload Shots . | . . . . . . . . . . . . . . . . . . . . . . . . Overflow Damage 103 | . . . . . . . . . . . . . 3 67 . . . 33 . . . . . Projectiles 103 | . . . . . . . . . . . . . 3 67 . . . 33 . . . . . Explosions . | . . . . . . . . . . . . . . . . . . . . . . . . Melee . | . . . . . . . . . . . . . . . . . . . . . . . . Knockbacks 4 | . . . . . . . . . . . . . 4 . . . . . . . . . . Impact . | . . . . . . . . . . . . . . . . . . . . . . . . Kinetic 4 | . . . . . . . . . . . . . 4 . . . . . . . . . . Secondary . | . . . . . . . . . . . . . . . . . . . . . . . . Self-Inflicted Damage 163 | . . . . . . 34 33 10 . 14 . . . . . . . . . . . . 72 Shots 5 | . . . . . . 2 2 . . . . . . . . . . . . . . . 1 Rammed 24 | . . . . . . . . 1 1 4 . . . . . . . . . . 1 . 17 Targets Rammed 24 | . . . . . . . . 1 1 4 . . . . . . . . . . 1 . 17 Kicked . | . . . . . . . . . . . . . . . . . . . . . . . . Crushed . | . . . . . . . . . . . . . . . . . . . . . . . . Highest Temperature 180 | . . . . 3 . . . . . . . 12 14 1 67 . . 8 . 42 21 180 30 Average Temperature 15 | . . . . 3 . . . . . . . 5 8 1 67 . . 5 . 26 7 47 16 Received Heat Transfer 891 | . . . . 9 63 117 75 6 . . . . 90 . . 81 . 195 . 93 45 . 117 Siege Activations . | . . . . . . . . . . . . . . . . . . . . . . . . Robots Corrupted 12 | . . . . . 4 1 6 1 . . . . . . . . . . . . . . . Combat Hostiles 11 | . . . . . 4 . 6 1 . . . . . . . . . . . . . . . Parts Fried 35 | . . . . . 13 3 16 3 . . . . . . . . . . . . . . . Impact Corruptions . | . . . . . . . . . . . . . . . . . . . . . . . . Robots Melted . | . . . . . . . . . . . . . . . . . . . . . . . . Combat Hostiles . | . . . . . . . . . . . . . . . . . . . . . . . . Parts Melted 4 | . . . . . . . . . . . . . . . . 2 . 1 . 1 . . . Heat Transferred 2742 | . . . . . . 50 150 . . . . . . 397 222 259 . 1110 . 554 . . . Parts Sabotaged 1 | . . . . . . . . . . . . . . . . . . . . 1 . . . Parts Stolen . | . . . . . . . . . . . . . . . . . . . . . . . . Parts Stripped . | . . . . . . . . . . . . . . . . . . . . . . . . Power Chain Reactions 5 | . . . . . . 2 3 . . . . . . . . . . . . . . . . Missiles Intercepted . | . . . . . . . . . . . . . . . . . . . . . . . . Alert | -11 -10 -10 -10 -9 -8 -8 -7 -6 -5 -5 -5 -5 -5 -5 -4 -4 -4 -4 -3 -3 -2 -2 -1 ------- Run | Scr Mat Min Exi Min Mat Sto Fac Fac Fac Was Fac Upp Upp Zhi Pro Fac Was Fac Res Arm Res Tes Acc Peak Influence 1456 | . . . . 139 329 207 447 315 209 103 58 . . . . 122 39 1456 726 468 315 306 453 Initial 696 | . . . . . 53 62 9 218 144 73 58 . . . . . 39 27 696 388 130 177 152 Average 215 | . . . . 35 169 91 180 268 164 90 58 . . . . 29 39 754 696 383 220 216 232 Maximum Alert Level 4 | . . . . . 1 1 2 1 1 . . . . . . . . 4 3 2 1 1 2 Low Security (%) 61 | 100 100 100 . 100 56 99 62 . 83 100 100 . . . . 100 100 18 . . 55 57 53 Level 1 22 | . . . . . 43 . 28 100 16 . . . . . . . . 4 . 40 44 42 35 Level 2 11 | . . . . . . . 9 . . . . . . . . . . 14 95 59 . . 10 Level 3 2 | . . . . . . . . . . . . . . . . . . 38 4 . . . . Level 4 1 | . . . . . . . . . . . . . . . . . . 24 . . . . . Level 5 . | . . . . . . . . . . . . . . . . . . . . . . . . High Security . | . . . . . . . . . . . . . . . . . . . . . . . . Max Security . | . . . . . . . . . . . . . . . . . . . . . . . . Squads Dispatched 39 | . . . . . 1 2 12 2 . . . . . . . 4 . 8 1 4 1 2 2 Investigation 11 | . . . . . 1 1 5 . . . . . . . . 1 . . 1 1 . . 1 Extermination 6 | . . . . . . . 2 . . . . . . . . 1 . 1 . 1 1 . . Reinforcement 16 | . . . . . . 1 2 2 . . . . . . . 2 . 5 . 2 . 1 1 Assault 4 | . . . . . . . 1 . . . . . . . . . . 2 . . . 1 . Garrison 2 | . . . . . . . 2 . . . . . . . . . . . . . . . . Intercept . | . . . . . . . . . . . . . . . . . . . . . . . . Searches Triggered . | . . . . . . . . . . . . . . . . . . . . . . . . Construction Impeded 2 | . . . . . . . . . . . . . . . . . . 2 . . . . . Haulers Reinforced 1 | . . . . . . . . . . . . . . . . . . 1 . . . . . Active Scanning Responses . | . . . . . . . . . . . . . . . . . . . . . . . . Cargo Convoy Interrupts . | . . . . . . . . . . . . . . . . . . . . . . . . Stealth | -11 -10 -10 -10 -9 -8 -8 -7 -6 -5 -5 -5 -5 -5 -5 -4 -4 -4 -4 -3 -3 -2 -2 -1 --------- Run | Scr Mat Min Exi Min Mat Sto Fac Fac Fac Was Fac Upp Upp Zhi Pro Fac Was Fac Res Arm Res Tes Acc Distress Signals 14 | . . . . . . 1 1 . . . . . . . . . . 4 . 3 . 1 4 Communications Jammed . | . . . . . . . . . . . . . . . . . . . . . . . . Distress Signals . | . . . . . . . . . . . . . . . . . . . . . . . . Times Spotted 284 | . . . . 4 20 13 19 6 3 6 . 4 7 . . 8 . 38 . 55 34 14 53 Peak Tracking Total 23 | . . . . 3 9 6 4 2 3 6 . 2 4 . . 5 . 13 . 21 13 8 23 Tactical Retreats 12 | . . . . . 1 1 1 . . . . . . . . 1 . 2 . 1 2 . 3 Traps | -11 -10 -10 -10 -9 -8 -8 -7 -6 -5 -5 -5 -5 -5 -5 -4 -4 -4 -4 -3 -3 -2 -2 -1 ------- Run | Scr Mat Min Exi Min Mat Sto Fac Fac Fac Was Fac Upp Upp Zhi Pro Fac Was Fac Res Arm Res Tes Acc Traps Triggered 13 | . . . . . . 3 2 . 2 . . . . . . 1 . . . 2 1 1 1 Indirectly . | . . . . . . . . . . . . . . . . . . . . . . . . Trap Hack Attempts . | . . . . . . . . . . . . . . . . . . . . . . . . Triggered . | . . . . . . . . . . . . . . . . . . . . . . . . Disarmed . | . . . . . . . . . . . . . . . . . . . . . . . . Reprogrammed . | . . . . . . . . . . . . . . . . . . . . . . . . Reused 1 | . . . . . . . . . . . . 1 . . . . . . . . . . . Traps Extracted . | . . . . . . . . . . . . . . . . . . . . . . . . Installed 1 | . . . . . . . . . . . . 1 . . . . . . . . . . . Triggered 16 | . . . . . . 4 8 . 3 . . 1 . . . . . . . . . . . Most Traps Carried 1 | . . . . . . . . . . . . 1 1 1 1 1 1 1 . . . . . Machines | -11 -10 -10 -10 -9 -8 -8 -7 -6 -5 -5 -5 -5 -5 -5 -4 -4 -4 -4 -3 -3 -2 -2 -1 ---------- Run | Scr Mat Min Exi Min Mat Sto Fac Fac Fac Was Fac Upp Upp Zhi Pro Fac Was Fac Res Arm Res Tes Acc Machines Disabled 10 | . . . . . 3 . 4 . . . . . 2 1 . . . . . . . . . Max in Single Turn 2 | . . . . . 2 . 2 . . . . . 1 1 . . . . . . . . . Garrison Access 1 | . . . . . . . 1 . . . . . . . . . . . . . . . . Machines Sabotaged . | . . . . . . . . . . . . . . . . . . . . . . . . Garrisons Compromised . | . . . . . . . . . . . . . . . . . . . . . . . . Overloaded Fab Kills 1 | . . . . . . . . . . . . . . . . . . . . . . . 1 Hacking | -11 -10 -10 -10 -9 -8 -8 -7 -6 -5 -5 -5 -5 -5 -5 -4 -4 -4 -4 -3 -3 -2 -2 -1 --------- Run | Scr Mat Min Exi Min Mat Sto Fac Fac Fac Was Fac Upp Upp Zhi Pro Fac Was Fac Res Arm Res Tes Acc Machines Accessed 24 | . . . . . 3 3 2 1 1 . . 2 . 4 . 3 . . 1 2 . 1 1 Terminals 15 | . . . . . 3 3 2 1 . . . . . . . 3 . . . 2 . 1 . Fabricators 2 | . . . . . . . . . . . . . . . . . . . 1 . . . 1 Repair Stations . | . . . . . . . . . . . . . . . . . . . . . . . . Recycling Units . | . . . . . . . . . . . . . . . . . . . . . . . . Scanalyzers . | . . . . . . . . . . . . . . . . . . . . . . . . Garrison Access 1 | . . . . . . . . . 1 . . . . . . . . . . . . . . Total Hacks 83 | . . . . . 18 21 5 2 1 . . 8 . 17 . 4 . . 2 2 . 1 2 Successful 62 | . . . . . 18 17 . . . . . 8 . 17 . . . . . . . 1 1 Failed 21 | . . . . . . 4 5 2 1 . . . . . . 4 . . 2 2 . . 1 Catastrophic 9 | . . . . . . . 2 1 . . . . . . . 3 . . 1 2 . . . Database Lockouts . | . . . . . . . . . . . . . . . . . . . . . . . . Manual 50 | . . . . . 18 20 3 2 1 . . . . . . 4 . . . . . . 2 Terminals 53 | . . . . . 18 21 5 2 . . . . . . . 4 . . . 2 . 1 . Fabricators 4 | . . . . . . . . . . . . . . . . . . . 2 . . . 2 Repair Stations . | . . . . . . . . . . . . . . . . . . . . . . . . Recycling Units . | . . . . . . . . . . . . . . . . . . . . . . . . Scanalyzers . | . . . . . . . . . . . . . . . . . . . . . . . . Garrison Access 1 | . . . . . . . . . 1 . . . . . . . . . . . . . . Terminal Hacks 47 | . . . . . 7 14 . . . . . 8 . 17 . . . . . . . 1 . Record 12 | . . . . . . . . . . . . 7 . 5 . . . . . . . . . Part Schematic 4 | . . . . . . . . . . . . . . 4 . . . . . . . . . Robot Analysis 12 | . . . . . 1 7 . . . . . . . 4 . . . . . . . . . Prototype ID Bank 4 | . . . . . . . . . . . . . . 4 . . . . . . . . . Open Door 1 | . . . . . . . . . . . . 1 . . . . . . . . . . . Level Access Points 2 | . . . . . 1 1 . . . . . . . . . . . . . . . . . Branch Access Points 1 | . . . . . 1 . . . . . . . . . . . . . . . . . . Unreport Threat 6 | . . . . . 3 3 . . . . . . . . . . . . . . . . . Security Status 1 | . . . . . 1 . . . . . . . . . . . . . . . . . . Extermination Status 1 | . . . . . . 1 . . . . . . . . . . . . . . . . . Recall Extermination 1 | . . . . . . 1 . . . . . . . . . . . . . . . . . Zone Layout 1 | . . . . . . 1 . . . . . . . . . . . . . . . . . Protovariant Controls 1 | . . . . . . . . . . . . . . . . . . . . . . 1 . Fabricator Hacks . | . . . . . . . . . . . . . . . . . . . . . . . . Repair Station Hacks . | . . . . . . . . . . . . . . . . . . . . . . . . Recycling Unit Hacks . | . . . . . . . . . . . . . . . . . . . . . . . . Scanalyzer . | . . . . . . . . . . . . . . . . . . . . . . . . Garrison Access Hacks . | . . . . . . . . . . . . . . . . . . . . . . . . Unauthorized Hacks 15 | . . . . . 11 3 . . . . . . . . . . . . . . . . 1 Terminals 14 | . . . . . 11 3 . . . . . . . . . . . . . . . . . Track 3 | . . . . . 2 1 . . . . . . . . . . . . . . . . . Assimilate 1 | . . . . . 1 . . . . . . . . . . . . . . . . . . Botnet 5 | . . . . . 3 2 . . . . . . . . . . . . . . . . . Detonate 2 | . . . . . 2 . . . . . . . . . . . . . . . . . . Disrupt 2 | . . . . . 2 . . . . . . . . . . . . . . . . . . Operators 1 | . . . . . 1 . . . . . . . . . . . . . . . . . . Fabricators 1 | . . . . . . . . . . . . . . . . . . . . . . . 1 Overload 1 | . . . . . . . . . . . . . . . . . . . . . . . 1 Repair Stations . | . . . . . . . . . . . . . . . . . . . . . . . . Recycling Units . | . . . . . . . . . . . . . . . . . . . . . . . . Scanalyzers . | . . . . . . . . . . . . . . . . . . . . . . . . Garrison Access . | . . . . . . . . . . . . . . . . . . . . . . . . Data Cores Recovered 1 | . . . . . 1 . . . . . . . . . . . . . . . . . . Used 1 | . . . . . 1 . . . . . . . . . . . . . . . . . . Hacking Detections 14 | . . . . . 1 3 2 1 1 . . . . . . 3 . . 1 2 . . . Full Trace Events 4 | . . . . . . . 2 . . . . . . . . 1 . . 1 . . . . Feedback Events 1 | . . . . . . . 1 . . . . . . . . . . . . . . . . Corruption 1 | . . . . . . . 1 . . . . . . . . . . . . . . . . Feedback Blocked . | . . . . . . . . . . . . . . . . . . . . . . . . Robot Schematics Acquired . | . . . . . . . . . . . . . . . . . . . . . . . . Robots Built . | . . . . . . . . . . . . . . . . . . . . . . . . Authchips . | . . . . . . . . . . . . . . . . . . . . . . . . Time . | . . . . . . . . . . . . . . . . . . . . . . . . Total Robot Build Rating . | . . . . . . . . . . . . . . . . . . . . . . . . Part Schematics Acquired 4 | . . . . . . . . . . . . . . 4 . . . . . . . . . Parts Built . | . . . . . . . . . . . . . . . . . . . . . . . . Authchips . | . . . . . . . . . . . . . . . . . . . . . . . . Time . | . . . . . . . . . . . . . . . . . . . . . . . . Total Part Build Rating . | . . . . . . . . . . . . . . . . . . . . . . . . Parts Repaired . | . . . . . . . . . . . . . . . . . . . . . . . . Time . | . . . . . . . . . . . . . . . . . . . . . . . . Parts Recycled . | . . . . . . . . . . . . . . . . . . . . . . . . Recycled Matter . | . . . . . . . . . . . . . . . . . . . . . . . . Retrieved Matter . | . . . . . . . . . . . . . . . . . . . . . . . . Retrieved Components . | . . . . . . . . . . . . . . . . . . . . . . . . Parts Scanalyzed . | . . . . . . . . . . . . . . . . . . . . . . . . Part Schematics Acquired . | . . . . . . . . . . . . . . . . . . . . . . . . Parts Damaged . | . . . . . . . . . . . . . . . . . . . . . . . . Bothacking | -11 -10 -10 -10 -9 -8 -8 -7 -6 -5 -5 -5 -5 -5 -5 -4 -4 -4 -4 -3 -3 -2 -2 -1 ------------ Run | Scr Mat Min Exi Min Mat Sto Fac Fac Fac Was Fac Upp Upp Zhi Pro Fac Was Fac Res Arm Res Tes Acc Used RIF Installer . | . . . . . . . . . . . . . . . . . . . . . . . . Robots Hacked 13 | . 1 . . . . . . . . . . 1 . . . . . 1 . 4 1 2 3 Non-combat 4 | . 1 . . . . . . . . . . . . . . . . 1 . 1 . . 1 Combat 9 | . . . . . . . . . . . . 1 . . . . . . . 3 1 2 2 Robot Hacks Applied 20 | . 1 . . . . . . . . . . 1 . . . . . 2 . 5 2 4 5 map_walls 2 | . 1 . . . . . . . . . . . . . . . . . . . . . 1 map_route 2 | . . . . . . . . . . . . . . . . . . 1 . 1 . . . mark_security 2 | . . . . . . . . . . . . . . . . . . 1 . 1 . . . find_scanalyzer 1 | . . . . . . . . . . . . . . . . . . . . . . 1 . report_analyses 1 | . . . . . . . . . . . . . . . . . . . . . . 1 . find_shortcuts 8 | . . . . . . . . . . . . 1 . . . . . . . 3 1 1 2 find_garrison 4 | . . . . . . . . . . . . . . . . . . . . . 1 1 2 Relay Couplers Released 3 | . . . . . . . 3 . . . . . . . . . . . . . . . . Machine Destruction 3 | . . . . . . . 3 . . . . . . . . . . . . . . . . Fabnet Peak Effective % . | . . . . . . . . . . . . . . . . . . . . . . . . Robots Rewired 6 | . . . . . . . 2 . . . . . 4 . . . . . . . . . . Allies Hacked 1 | . . . . . . . . . . . . . . . . . . 1 . . . . . Hacks Repelled . | . . . . . . . . . . . . . . . . . . . . . . . . Allies | -11 -10 -10 -10 -9 -8 -8 -7 -6 -5 -5 -5 -5 -5 -5 -4 -4 -4 -4 -3 -3 -2 -2 -1 -------- Run | Scr Mat Min Exi Min Mat Sto Fac Fac Fac Was Fac Upp Upp Zhi Pro Fac Was Fac Res Arm Res Tes Acc Total Allies 30 | . . . . 3 . 1 2 . . . . . 4 . . . 20 . . . . . . Largest Group 20 | . . . . 3 2 1 1 1 . . . . 4 . . . 20 20 . . . . . Highest-Rated Group 764 | . . . . 40 32 100 20 20 . . . . 95 . . . 764 764 . . . . . Highest-Rated Ally 100 | . . . . 16 16 100 20 20 . . . . 25 . . . 50 50 . . . . . Total Orders 1 | . . . . . 1 . . . . . . . . . . . . . . . . . . STAY 1 | . . . . . 1 . . . . . . . . . . . . . . . . . . Ally Attacks 242 | . . . . 19 14 16 2 . . . . . 9 . . . . 182 . . . . . Total Damage 7771 | . . . . 175 137 903 42 . . . . . 250 . . . . 6264 . . . . . Kills 46 | . . . . 3 1 7 1 . . . . . 2 . . . . 32 . . . . . Allies Corrupted 1 | . . . . . . . . . . . . . 1 . . . . . . . . . . Allies Melted . | . . . . . . . . . . . . . . . . . . . . . . . . Turrets Deployed 1 | . . . . . . 1 . . . . . . . . . . . . . . . . . Intel | -11 -10 -10 -10 -9 -8 -8 -7 -6 -5 -5 -5 -5 -5 -5 -4 -4 -4 -4 -3 -3 -2 -2 -1 ------- Run | Scr Mat Min Exi Min Mat Sto Fac Fac Fac Was Fac Upp Upp Zhi Pro Fac Was Fac Res Arm Res Tes Acc Robot Analysis Total 20 | . 1 . . . 1 6 . . . . . 2 . 4 . . . 1 . 2 2 1 . Derelict Logs Recovered 5 | . . 1 . . . . . . . . . 2 1 . 1 . . . . . . . . Drone Launches . | . . . . . . . . . . . . . . . . . . . . . . . . Drone Recoveries . | . . . . . . . . . . . . . . . . . . . . . . . . Exploration | -11 -10 -10 -10 -9 -8 -8 -7 -6 -5 -5 -5 -5 -5 -5 -4 -4 -4 -4 -3 -3 -2 -2 -1 ------------- Run | Scr Mat Min Exi Min Mat Sto Fac Fac Fac Was Fac Upp Upp Zhi Pro Fac Was Fac Res Arm Res Tes Acc Turns Passed 6442 | 9 45 148 157 248 443 446 616 100 62 130 73 673 599 229 356 327 164 319 67 543 287 152 249 Spaces Moved 5878 | 18 84 185 153 158 261 275 613 106 129 272 146 562 408 151 345 287 84 251 118 385 264 205 418 Core 914 | 18 73 . 1 . . 4 . . . 16 146 347 . 7 . . . 21 . 78 80 50 73 Treads 35 | . . . . . . . . . . . . . . . . . . . . 35 . . . Legs 1670 | . . . . . . . . . . . . 215 408 144 345 287 84 187 . . . . . Wheels 565 | . 11 185 100 . . . . . . . . . . . . . . . . . 54 81 134 Hover 2315 | . . . 52 158 261 271 613 106 129 256 . . . . . . . 43 118 272 . 7 29 Flight 379 | . . . . . . . . . . . . . . . . . . . . . 130 67 182 Fastest Speed 7 | 50 50 80 50 150 80 50 46 46 46 46 50 50 120 50 100 100 100 50 56 50 34 34 7 Average Speed 81 | 50 53 80 103 150 141 91 65 46 46 46 50 76 120 100 100 100 100 88 56 70 61 63 51 Slowest Speed 300 | 50 80 80 150 150 150 96 96 46 46 50 50 120 120 120 100 100 100 100 56 160 117 300 150 Overloaded Moves 101 | . . . . . . . . . . . . . . . . . . . . . . . 101 Propulsion Burnouts 2 | . . . . . . . . . . . . . . . . . . . . . . . 2 Robots Hopped 24 | . . . . . . 1 . . . . . . . . . . . . . . 11 . 12 Cave-ins Triggered . | . . . . . . . . . . . . . . . . . . . . . . . . Exploration Rate (%) 31 | 3 17 45 53 33 31 43 21 4 7 86 5 57 55 60 51 11 64 11 5 48 8 27 14 Regions Visited 23 Branch Regions 10 Pre-discovered Areas 4 | . . . . . . . . . . . . 1 . 3 . . . . . . . . . Known Exits Taken 6 | . . . 1 . 1 1 . . . . . . . . . . . 1 1 1 . . . Unknown Exits Taken 13 | 1 1 1 . 1 . . 1 1 . . 1 1 1 1 1 . . . . . 1 1 . Scrap Searched 3 | . . . . . . . . . . . . 3 . . . . . . . . . . . Spaces Dug . | . . . . . . . . . . . . . . . . . . . . . . . . Terrain Destroyed 85 | . . . . . 21 11 21 . . . . . 9 . 3 1 . 8 . 1 . . 10 Melee . | . . . . . . . . . . . . . . . . . . . . . . . . Projectile 22 | . . . . . . . . . . . . . 9 . 3 1 . 8 . 1 . . . AOE 63 | . . . . . 21 11 21 . . . . . . . . . . . . . . . 10 Terrain Rammed . | . . . . . . . . . . . . . . . . . . . . . . . . Walls Destroyed . | . . . . . . . . . . . . . . . . . . . . . . . . Machines Disabled . | . . . . . . . . . . . . . . . . . . . . . . . . Actions | -11 -10 -10 -10 -9 -8 -8 -7 -6 -5 -5 -5 -5 -5 -5 -4 -4 -4 -4 -3 -3 -2 -2 -1 --------- Run | Scr Mat Min Exi Min Mat Sto Fac Fac Fac Was Fac Upp Upp Zhi Pro Fac Was Fac Res Arm Res Tes Acc Total 7193 | 17 83 184 152 169 333 462 781 142 132 275 145 777 487 212 348 320 164 299 118 589 353 216 435 Wait 1011 | . . . . 12 73 141 116 22 2 . . 199 18 52 . 28 81 25 1 161 72 2 6 Move 5813 | 17 83 184 152 157 260 272 612 105 129 271 145 561 407 150 344 287 83 250 117 384 243 204 396 Hop 21 | . . . . . . 1 . . . . . . . . . . . . . . 10 . 10 Pick Up 7 | . . . . . . 1 . . . . . 3 2 1 . . . . . . . . . Fast Attach . | . . . . . . . . . . . . . . . . . . . . . . . . Attach . | . . . . . . . . . . . . . . . . . . . . . . . . Detach . | . . . . . . . . . . . . . . . . . . . . . . . . Swap . | . . . . . . . . . . . . . . . . . . . . . . . . Drop 5 | . . . . . . 1 . . . . . 1 2 1 . . . . . . . . . Fire 235 | . . . . . . 7 45 14 . . . 12 31 8 4 5 . 24 . 43 28 10 4 Melee 2 | . . . . . . . . . . . . . . . . . . . . . . . 2 Ram 24 | . . . . . . . . 1 1 4 . . . . . . . . . 1 . . 17 Kick . | . . . . . . . . . . . . . . . . . . . . . . . . Crush . | . . . . . . . . . . . . . . . . . . . . . . . . Escape Stasis 39 | . . . . . . 39 . . . . . . . . . . . . . . . . . Rewire 35 | . . . . . . . 8 . . . . . 27 . . . . . . . . . . Trap 1 | . . . . . . . . . . . . 1 . . . . . . . . . . . Miscellaneous . | . . . . . . . . . . . . . . . . . . . . . . . . Route ------- -11/Scrapyard -10/Materials -10/Mines (discovered 3 exits: [*Mat x2] / [*Exi]) -10/Exiles (discovered 2 exits: *Min x2) -9/Mines -8/Materials (discovered 5 exits: *Fac x3 / *Sto x2) -8/Storage -7/Factory -6/Factory -5/Factory -5/Waste -5/Factory -5/Upper Caves -5/Upper Caves -5/Zhirov -4/Proximity Caves -4/Factory (discovered 2 exits: Res / Ext) -4/Waste -4/Factory -3/Research (discovered 2 exits: *Arm / [*Qua]) -3/Armory -2/Research -2/Testing -1/Access History --------- Turn | Location | Event 3 | -11/Scrapyard | Discovered new exit (range 15) 10 | -11/Scrapyard | Entered Materials 49 | -10/Materials | Discovered new exit (range 8) 55 | -10/Materials | Entered Mines 60 | -10/Mines | Discovered new exit (range 7) 124 | -10/Mines | Discovered new exit (range 12) 200 | -10/Mines | Deemed a non-threat by the Exiles lab entrance 200 | -10/Mines | Discovered new exit (range 5) 203 | -10/Mines | Entered Exiles 204 | -10/Exiles | Identified exit to Mines 223 | -10/Exiles | Met 8R-AWN 236 | -10/Exiles | Met EX-HEX 265 | -10/Exiles | Met EX-BIN 275 | -10/Exiles | Met EX-DEC 284 | -10/Exiles | Took control of EX-DEC (ally) 360 | -10/Exiles | Left Exiles lab with Deploy-a-Sentry 360 | -10/Exiles | Entered Mines 366 | -9/Mines | Assisted by bots powering up and referring to "LRC-V3" 394 | -9/Mines | A weapon hastily lodged in a ceiling crevice suddenly fell to the ground 543 | -9/Mines | Discovered new exit (range 14) 608 | -9/Mines | Entered Materials 608 | -8/Materials | Accompanied by 2 allies 692 | -8/Materials | Destroyed 8 combat bots 901 | -8/Materials | Identified exit to Storage 901 | -8/Materials | Identified exit to Factory 1051 | -8/Materials | Entered Storage 1070 | -8/Storage | DAS Turret deployed 1141 | -8/Storage | Met 01-MTF 1167 | -8/Storage | Took control of 01-MTF (ally) 1243 | -8/Storage | Found Exp. Core Analyzer 1270 | -8/Storage | Remotely autohacked Sealed Heavy Doors 1497 | -8/Storage | Entered Factory 1901 | -7/Factory | Discovered new exit (range 10) 1944 | -7/Factory | Garrison activated, responded to threat 2113 | -7/Factory | Entered another Factory area 2113 | -6/Factory | Accompanied by 1 ally 2161 | -6/Factory | Discovered new exit (range 12) 2213 | -6/Factory | Entered another Factory area 2240 | -5/Factory | Spotted B-75 Beast 2275 | -5/Factory | Sucked down chute 2275 | -5/Factory | Entered Waste 2307 | -5/Waste | Spotted C-40 Crusher 2317 | -5/Waste | Spotted C-40 Crusher 2336 | -5/Waste | Spotted C-40 Crusher 2341 | -5/Waste | Spotted C-40 Crusher 2341 | -5/Waste | Spotted C-40 Crusher 2364 | -5/Waste | Spotted C-40 Crusher 2379 | -5/Waste | Discovered new exit (range 12) 2394 | -5/Waste | Crushed by Compactor (1 part destroyed, 2 dropped) 2397 | -5/Waste | Crushed by Compactor (1 part destroyed, 1 dropped) 2405 | -5/Waste | Entered Factory 2411 | -5/Factory | Discovered new exit (range 10) 2478 | -5/Factory | Entered Upper Caves 3007 | -5/Upper Caves | Learned location of 1 exit from Factory 3010 | -5/Upper Caves | Learned location of Armory (-3) 3099 | -5/Upper Caves | Learned location of 1 exit from Factory 3099 | -5/Upper Caves | Learned Extension terminal intel 3099 | -5/Upper Caves | Learned Factory garrison access intel 3099 | -5/Upper Caves | Learned Armory garrison access intel 3134 | -5/Upper Caves | Discovered new exit (range 12) 3151 | -5/Upper Caves | Entered another Upper Caves area 3223 | -5/Upper Caves | Learned 4 Factory zone layouts 3231 | -5/Upper Caves | Found Alien Artifact 3303 | -5/Upper Caves | Attacked by a delusional Derelict stockpiling Unaware 3734 | -5/Upper Caves | Discovered new exit (range 12) 3750 | -5/Upper Caves | Entered Zhirov 3750 | -5/Zhirov | Discovered new exit (range 3) 3772 | -5/Zhirov | Met Zhirov 3783 | -5/Zhirov | Took control of Svarog (ally) 3805 | -5/Zhirov | Learned location of Quarantine (-3) 3805 | -5/Zhirov | Learned location of Testing (-2) 3805 | -5/Zhirov | Learned location of Command (-1) 3811 | -5/Zhirov | Zhirov requested help retrieving the SGEMP Prototype 3979 | -5/Zhirov | Entered Proximity Caves 4049 | -4/Proximity Caves | Spotted B-86 Titan 4304 | -4/Proximity Caves | Learned Research stockpile data 4327 | -4/Proximity Caves | Discovered new exit (range 8) 4335 | -4/Proximity Caves | Entered Factory 4336 | -4/Factory | Identified exit to Extension 4336 | -4/Factory | Identified exit to Research 4338 | -4/Factory | Loaded intel: 4 garrison access locations 4353 | -4/Factory | Spotted B-86 Titan 4662 | -4/Factory | Sucked down chute 4662 | -4/Factory | Entered Waste 4663 | -4/Waste | Joined by Warlord forces that had cleared the area 4720 | -4/Waste | Discovered new exit (range 16) 4826 | -4/Waste | Entered Factory 4826 | -4/Factory | Accompanied by 20 allies 4932 | -4/Factory | Discovered exit to Research (range 15) 5110 | -4/Factory | Core integrity fell below 50% 5115 | -4/Factory | First assault squad dispatched 5139 | -4/Factory | Lost 6 parts (1n3u2w) 5145 | -4/Factory | Entered Research 5208 | -3/Research | Discovered new exit (range 7) 5211 | -3/Research | Discovered new exit (range 17) 5211 | -3/Research | Identified exit to Armory 5212 | -3/Research | Entered Armory 5501 | -3/Armory | System corruption reached 10% 5540 | -3/Armory | Lost 7 parts (2n3u2w) 5689 | -3/Armory | Core integrity fell below 50% 5719 | -3/Armory | Discovered new exit (range 42) 5750 | -3/Armory | Core integrity fell below 20% 5755 | -3/Armory | Identified exit to Research 5755 | -3/Armory | Entered Research 5785 | -2/Research | Lost 9 parts (2p2n4u1w) 6034 | -2/Research | Discovered new exit (range 12) 6042 | -2/Research | Entered Testing 6060 | -2/Testing | Spotted Alpha 7 6062 | -2/Testing | Spotted PH-MMUYJ0EHYV 6094 | -2/Testing | Protovariant out of control (PH-MMUYJ0EHYV) 6094 | -2/Testing | Unleashed a protovariant (PH-MMUYJ0EHYV) 6154 | -2/Testing | Core integrity fell below 50% 6186 | -2/Testing | Core integrity fell below 20% 6191 | -2/Testing | Discovered new exit (range 5) 6194 | -2/Testing | Entered Access 6209 | -1/Access | Lost 7 parts (2p3n1u1w) 6377 | -1/Access | Core integrity fell below 50% 6384 | -1/Access | Lost 5 parts (1p3n1w) 6423 | -1/Access | Core integrity fell below 20% 6443 | -1/Access | Destroyed by H-88 Terminator with KE Penetrator Last Messages --------------- 06428_ Slug penetrates K-01 Serf. 06428_ K-01 Serf destroyed. 06428_ Slug penetrates Wall. 06428_ Penetrated by Slug. 06428_ R-10 Processor collects Wheel. 06429_ K-01 Serf collects debris. 06430_ System corrupted: Component data lost. 06431_ Slammed into R-10 Processor. 06431_ Destabilizing: Core damaged (-16). 06431_ Slug penetrates Wall. 06432_ Took control of U-05 Engineer. 06434_ Slammed into K-01 Serf. 06438_ Penetrated by Slug. 06438_ Wheel destroyed. 06439_ Slammed into W-44 Eye. 06441_ Slammed into U-05 Engineer. 06442_ Slammed into K-01 Serf. 06443_ Penetrated by Slug. 06443_ Welding Torch destroyed. 06443_ Penetrated by Slug. Map ----- +----------------------------------------------------+ | #?# ! %= #????????????# + | | #?# * #????######??# # | | ? #?# #???? =??# # | | ?###########?# !== #????? ?# #? | | ?????????????# === #?????"""" ?# #? | | ?????????????# == =%*# ????"""" # #?? | | ?????????????# # ???""""" # #?? | | ?????????????# # ???""""" + #?? | | ?????????????# # ???""""" # #?? | | ?????????????# # ?? # #?? | | ?????????????############+# ?# #?? | | ????????????????#??????## # =!* ?# #?? | | ?????????????????##????## # =* ??# #?? | | ???????????????????????##c# !* ??# #?? | | ??????????????#??##????## ###########??# #?? | | ???????????????????????##h##????????#??# #?? | | ??????????????????#?#??##h##???????????# #?? | | ??????????????????#????## ##???????????# #?? | | ????????????#?????????###w########?????#########?? | | ????????????????#??#???## ###################????? | | ???????????????????????##w ??????????? | | ??????????????????????###u###################????? | | ?????????????##????????## ############???????????? | | ???????????????#???????##k##???? ? ??#???????????? | | ???????????????????????##%##?????? ??#???????????? | | ????????????#?#????????##u## ???????#???????????? | | ???????????????????#???##h##??????? ?#???????????? | | ?????????????????????#?# #?????????#???????????? | | ??????????????????#???##! + ????"???#???????????? | | ??????????????????????## h # ????? ??#???????????? | | ??????????????????????### ## ?????? ?#???????????? | | ??????????????????????### ############???????????? | | ???????????????????????##k## ????????????????????? | | ???????????????????????## ##?????????????????????? | | ????????????????????????#k#?? ???????????????????? | | ????????????????????????#w#??????????????????????? | | ????????????????????##??# ##? ???????????????????? | | ????????????????????????#k#??????????????????????? | | ????????????????????????#w#??????????????????????? | | ?????????????????????????????????????????????????? | | ?????????????????????????????????????????????????? | | ?????????????????????????????????????????????????? | | ?????????????????????????????????????????????????? | | ?????????????????????????????????????????????????? | | ?????????????????????????????????????????????????? | | ?????????????????????????????????????????????????? | | ?????????????????????????????????????????????????? | | ?????????????????????????????????????????????????? | | ?????????????????????????????????????????????????? | | ?????????????????????????????????????????????????? | +----------------------------------------------------+ Best States ------------- Heat Dissipation 150 Energy Generation 66 Energy Capacity 620 Matter Stores 250 Matter Capacity 250 Sight Range 20 Robot Scan Range 16 Terrain Scan Range 14 Terrain Scan Density 85 Cloak Strength 3 Corruption Containment 12 Corruption Block 20 Armor Coverage 600 Resistance: KI 25 Resistance: TH 55 Resistance: EX 75 Resistance: EM 90 Resistance: I 25 Propulsion Shielding 66 Weapon Shielding 66 Phase Shifting 5 Evasion (%) 63 Targeting Accuracy 10 Melee Accuracy 6 Launcher Accuracy 40 Target Analysis 6 Core Analysis 8 Armor Integrity Analysis 40 Recoil Reduction 2 Particle Charging 25 Offensive Hacking 70 Defensive Hacking 56 Item Schematics ----------------- Assault Drone Bay | -5/Zhirov | Free Exp. Heat Sink | -5/Zhirov | Free Exp. Optical Array | -5/Zhirov | Free Imp. Arc Thrower | -5/Zhirov | Free Robot Schematics ------------------ None Fabricated ------------ Nothing Alien Tech Used ----------------- None Achievements -------------- Maximum Efficiency Challenges ------------ None Polymind | -11 -10 -10 -10 -9 -8 -8 -7 -6 -5 -5 -5 -5 -5 -5 -4 -4 -4 -4 -3 -3 -2 -2 -1 ---------- Run | Scr Mat Min Exi Min Mat Sto Fac Fac Fac Was Fac Upp Upp Zhi Pro Fac Was Fac Res Arm Res Tes Acc Robots Controlled 20 | . 1 . 1 . . 1 . . . . . 2 . 1 . . . 1 . 4 2 3 4 Combat Hostiles 8 | . . . . . . . . . . . . 1 . . . . . . . 3 1 1 2 Allies 3 | . . . 1 . . 1 . . . . . 1 . . . . . . . . . . . Classes Controlled 12 | . 1 . 1 . . 1 . . . . . 1 . 1 . . . 1 . 2 2 1 1 Average Host Suspicion 68 | . 1 41 . 52 94 82 84 88 56 50 . 76 67 57 25 66 32 81 28 87 93 71 63 Unsuspicious Activity 768 | . 2 . 16 . . 60 70 . . 40 . 33 30 200 40 . . . . 191 18 51 17 Returns to Shadow . | . . . . . . . . . . . . . . . . . . . . . . . . Fuzzy Dispatches 1 | . . . . . . . . . . . . . . . . . . . . 1 . . . Protomatter Created 2162 | . . . . 5 131 68 146 47 . . . 129 180 . . 63 205 576 . 149 27 417 19 Used 1064 | . 5 . 33 . . 120 . . . . . 67 . 320 . . . 45 . 304 29 79 62 Decayed 799 | . . . . . 29 27 70 . . . . . 44 . . . 205 124 . 53 . 247 . Highest Spend 320 | . 5 . 33 . . 120 . . . . . 51 . 320 . . . 45 . 97 24 50 28 Top 5 Hosts by Kills: 01-MTF (-8/Storage: 19) EX-DEC (-10/Exiles: 16) Game ------ Seed FactoryTacticalBattery Manual? 0 Play Time 01:05:36 Cumulative 367.7 hours Start 2022.12.24 @ 21:58:43 End 2022.12.25 @ 15:05:26 Sessions 5 Manual Loads 0 Difficulty Rogue Special Mode Winter2022/Polymind Game No. 648 Rogue 493 Adventurer 148 Explorer 7 Win Type - Total 13 Types 11/0/1/1/0/0/0/0/0 Lore% 76 Gallery% 88 Achievement% 69 Wizard Run 0 Options --------- ASCII 0 Keyboard 0 Movement Numpad Keybinds 0 Fullscreen 2 Font 18/SmallcapsGlow Map View 76x50 Tactical HUD 1 Map Filters NONE Filters NONE Steam 1 RUN: a840ea55-365c-497c-b602-5c6ed00b0778